bitfinex/quotes_ETHUSD_20241101
["timestamp","ask_amount","ask_price","bid_price","bid_amount"]
[1730478910335,3.95558,2528.1,2527.6,3.95624]
[1730478910694,3.95558,2528.1,2527.6,3.95625]
[1730478911014,3.95573,2528.0,2527.4,3.95653]
[1730478911189,3.95601,2527.8,2527.3,5.12526]
[1730478911396,1.108,2527.9,2527.0,1.1686]
[1730478911632,3.95679,2527.3,2526.9,3.95731]
[1730478911804,3.95709,2527.2,2526.7,5.12624]
[1730478912005,5.06487,2527.3,2526.8,3.95749]
[1730478912349,1.108,2527.3,2526.8,4.69282505]
[1730478912667,3.95644,2527.6,2526.9,4.03655168]
[1730478912815,3.95665,2527.4,2526.9,3.95733]
[1730478913015,7.91342,2527.4,2526.9,3.95733]
[1730478913216,7.91339,2527.4,2526.9,3.95733]
[1730478913415,7.91337,2527.4,2526.9,3.95733]
[1730478913724,3.95682,2527.3,2526.9,3.95733]
[1730478913942,3.0,2527.5,2526.7,1.1686]
[1730478914143,3.0,2527.5,2526.4,0.79673942]
[1730478914144,1.1048,2527.0,2526.4,5.86993942]
[1730478914320,1.1048,2527.0,2526.5,3.95792]
[1730478914518,1.1048,2527.0,2526.6,3.95783]
[1730478915055,5.06207,2527.0,2526.5,3.95792]
[1730478915258,9.01941,2527.0,2526.5,3.95792]
[1730478915455,3.95742,2526.9,2526.5,3.95792]
[1730478915845,3.9579,2526.6,2526.4,0.79673942]
[1730478916071,3.95804,2526.5,2526.4,0.79673942]
[1730478916250,5.07454,2526.5,2526.4,0.79673942]
[1730478917754,3.0,2526.6,2526.4,4.75490942]
[1730478917952,1.1165,2527.1,2526.4,0.79673942]
[1730478918155,3.95674,2527.4,2526.8,3.9575]
[1730478918359,3.95674,2527.4,2526.9,3.95741]
[1730478918653,3.95664,2527.4,2527.0,3.95716]
[1730478918954,5.07298,2527.5,2527.0,3.95716]
[1730478919318,1.1165,2527.5,2527.0,3.95716]
[1730478919639,3.95664,2527.4,2527.0,3.95724]
[1730478919877,4.1165,2527.5,2526.8,3.95745]
[1730478920086,3.95679,2527.3,2526.8,3.95745]
[1730478920382,3.95679,2527.3,2526.9,3.9574]
[1730478920764,7.91371,2527.3,2526.8,3.95745]
[1730478921102,3.95694,2527.2,2526.7,1.1112]
[1730478921389,3.95718,2527.1,2526.6,3.95784]
[1730478921591,3.95692,2527.3,2526.7,3.95772]
[1730478921889,3.95692,2527.3,2526.8,3.95754]
[1730478921890,7.91385,2527.3,2526.8,3.95754]
[1730478922050,3.95695,2527.2,2526.7,3.95772]
[1730478922397,3.95695,2527.2,2526.7,7.91529]
[1730478922596,3.95695,2527.2,2526.7,3.95764]
[1730478923091,3.0,2527.4,2527.0,3.95726]
[1730478923673,3.95624,2527.7,2527.2,3.95685]
[1730478923868,3.95624,2527.7,2527.1,0.07913486]
[1730478923869,3.95635,2527.6,2527.1,0.07913486]
[1730478924602,3.95635,2527.6,2527.2,3.95694]
[1730478924799,3.95635,2527.6,2527.1,4.03621486]
[1730478925111,3.95766,2526.8,2526.1,3.95855]
[1730478925278,1.1156,2527.0,2526.1,1.1587]
[1730478925614,7.91597,2526.6,2526.1,5.11736]
[1730478925771,3.95806,2526.5,2526.1,5.19652464]
[1730478926075,3.95797,2526.6,2526.1,4.03782464]
[1730478926278,3.0,2527.0,2526.6,3.95781]
[1730478926479,3.95721,2527.1,2526.5,5.02832]
[1730478926480,3.0,2527.1,2526.7,3.95764]
[1730478926715,3.0,2527.1,2526.7,3.95772]
[1730478927213,3.95702,2527.2,2526.5,1.0704]
[1730478927383,3.95743,2526.9,2526.2,1.1076]
[1730478927581,6.95679,2527.3,2525.3,4.0825883]
[1730478927582,1.1519,2526.7,2525.8,1.186754]
[1730478927799,3.95812,2526.5,2526.0,3.95873]
[1730478928100,3.95812,2526.5,2526.0,4.03789811]
[1730478928272,3.95788,2526.6,2526.1,3.95858]
[1730478928472,3.0,2526.6,2526.0,3.9587]
[1730478928684,1.1519,2526.7,2526.2,3.95843]
[1730478929011,3.95764,2526.8,2526.3,4.03741683]
[1730478929308,3.95764,2526.8,2526.3,3.95826]
[1730478929511,3.95751,2526.9,2526.4,3.95818]
[1730478929681,3.95759,2526.8,2526.4,3.95818]
[1730478929884,3.95759,2526.8,2526.3,5.19558684]
[1730478930083,1.1657,2527.0,2526.3,1.1581]
[1730478930084,3.9579,2526.6,2526.3,1.1581]
[1730478930289,3.9578,2526.7,2526.3,1.1581]
[1730478930599,3.95759,2526.8,2526.3,5.11635]
[1730478930777,3.95759,2526.8,2526.4,3.95816]
[1730478931613,3.95759,2526.8,2526.3,1.1581]
[1730478931822,3.95759,2526.8,2526.3,5.11638]
[1730478932006,0.908067,2526.8,2526.0,3.95868]
[1730478932205,3.95812,2526.5,2526.0,3.95868]
[1730478932512,3.95812,2526.5,2526.0,0.07916594]
[1730478932813,3.95812,2526.5,2525.6,3.95939]
[1730478932814,3.95867,2526.1,2525.7,3.95921]
[1730478933013,3.95867,2526.1,2525.6,1.1049]
[1730478933014,3.95867,2526.1,2525.6,5.06433]
[1730478933308,3.95857,2526.2,2525.6,1.1049]
[1730478933509,3.95891,2526.0,2525.6,5.06434]
[1730478933720,3.95843,2526.3,2525.8,3.959]
[1730478934005,5.06432,2526.4,2525.9,3.95895]
[1730478934416,3.95839,2526.3,2525.9,3.95895]
[1730478935277,3.95837,2526.3,2525.8,3.95909]
[1730478935500,3.95855,2526.2,2525.7,3.95918]
[1730478935684,1.1061,2526.4,2525.6,1.1049]
[1730478935685,3.95867,2526.1,2525.6,1.1049]
[1730478935988,1.1061,2526.4,2525.0,7.75671997]
[1730478935989,4.1061,2526.4,2525.4,3.95976]
[1730478936171,3.959,2525.9,2525.4,3.95976]
[1730478936375,4.1404,2525.9,2525.0,5.07587]
[1730478936607,3.95969,2525.5,2524.9,3.96041]
[1730478936910,3.96008,2525.2,2524.7,5.07627]
[1730478937114,1.1404,2525.3,2524.7,5.07627]
[1730478937328,5.10035,2525.3,2524.8,3.96068]
[1730478937615,6.95955,2525.6,2525.2,3.96007]
[1730478937822,3.9597,2525.5,2524.8,3.96061]
[1730478937985,3.95979,2525.4,2524.9,3.96046]
[1730478938174,3.95979,2525.4,2524.8,3.96061]
[1730478938175,3.95995,2525.3,2524.8,3.96061]
[1730478938382,3.95995,2525.3,2524.3,5.08021]
[1730478938383,3.96003,2525.3,2524.7,3.96085]
[1730478938741,3.96003,2525.3,2524.8,3.96069]
[1730478938940,3.96001,2525.3,2524.6,3.961]
[1730478939142,3.96018,2525.2,2524.6,3.961]
[1730478939356,5.09549,2525.1,2524.5,3.96115]
[1730478939501,3.96039,2525.0,2524.5,3.96115]
[1730478939700,1.1351,2525.1,2524.3,1.1188]
[1730478940038,3.96048,2525.0,2524.5,3.96115]
[1730478940209,3.96048,2525.0,2524.4,3.96133]
[1730478940412,1.1351,2525.1,2524.7,3.96079]
[1730478940726,1.1351,2525.1,2524.2,3.96158]
[1730478940727,5.09603,2524.7,2524.2,3.96158]
[1730478940926,5.09603,2524.7,2524.2,3.96156]
[1730478941129,9.05697,2524.7,2524.2,3.96156]
[1730478941329,3.96102,2524.6,2524.0,5.04867]
[1730478941502,1.1351,2524.7,2524.0,1.0868]
[1730478941704,3.9607,2524.9,2524.4,3.96129]
[1730478941942,3.9607,2524.9,2524.2,3.96154]
[1730478941943,3.96079,2524.8,2524.3,3.96147]
[1730478942243,3.96103,2524.6,2524.1,3.9618]
[1730478942541,3.96103,2524.6,2524.0,5.04864]
[1730478942542,1.0741,2524.5,2524.0,3.96184]
[1730478942705,6.96099,2524.7,2523.6,1.1022]
[1730478942706,3.0,2524.7,2524.2,3.96164]
[1730478942901,3.96088,2524.7,2524.2,3.96164]
[1730478943106,4.0741,2524.8,2524.2,5.06384]
[1730478943107,8.03483,2524.8,2524.2,5.06384]
[1730478943330,3.96091,2524.7,2524.3,3.96139]
[1730478943602,8.03483,2524.8,2523.9,0.07922437]
[1730478943603,3.96108,2524.6,2523.9,5.11291]
[1730478943802,3.96102,2524.6,2524.0,3.96181]
[1730478944229,3.96086,2524.7,2524.2,3.96165]
[1730478944902,4.0741,2524.8,2524.5,3.96115]
[1730478945136,4.0992,2525.0,2524.5,3.96115]
[1730478945445,3.96116,2524.6,2523.9,5.11277]
[1730478945754,3.96116,2524.6,2523.3,3.0]
[1730478945755,3.96147,2524.4,2523.8,3.96213]
[1730478945918,1.0662,2524.3,2523.4,19.77]
[1730478946248,3.96227,2523.9,2523.3,5.04757]
[1730478946557,7.68791949,2524.2,2523.1,3.96326]
[1730478946558,3.96244,2523.7,2523.1,3.96326]
[1730478946844,1.0662,2523.6,2523.1,7.92653]
[1730478947140,1.0662,2523.6,2523.1,7.92648]
[1730478947355,3.9623,2523.8,2523.4,3.96278]
[1730478947640,3.9623,2523.8,2523.3,3.96305]
[1730478948019,6.96227,2523.8,2522.8,8.05596323]
[1730478948232,5.75521949,2523.9,2522.8,8.05596323]
[1730478948233,3.96314,2523.3,2522.8,8.05596323]
[1730478948744,3.96314,2523.3,2522.8,8.05588323]
[1730478949138,10.92574,2523.5,2522.9,4.0428176]
[1730478949437,3.96293,2523.4,2522.9,3.96355]
[1730478949639,3.96306,2523.3,2522.9,3.96355]
[1730478949801,6.96285,2523.5,2522.9,3.96355]
[1730478950007,10.92572,2523.5,2522.9,4.0428154]
[1730478950231,10.92572,2523.5,2522.9,3.96355]
[1730478950232,6.96285,2523.5,2522.9,3.96355]
[1730478950445,3.0,2523.2,2522.8,4.09212323]
[1730478950628,6.96369,2522.9,2522.8,4.09212323]
[1730478951418,8.02689,2522.9,2522.8,4.09212323]
[1730478951867,1.0632,2521.9,2521.6,0.1]
[1730478952214,5.02848,2521.9,2521.6,0.1]
[1730478952665,1.0632,2521.9,2521.6,0.1]
[1730478952952,5.0285,2521.9,2521.6,0.1]
[1730478953124,1.0632,2521.9,2521.6,0.1]
[1730478953327,8.02854,2521.9,2521.6,0.1]
[1730478953513,3.96542,2521.8,2521.6,0.1]
[1730478953717,3.96448,2522.4,2521.7,3.96557]
[1730478954039,6.96465,2522.3,2521.7,3.96548]
[1730478954229,3.96465,2522.3,2521.7,3.96548]
[1730478954637,1.0632,2522.5,2521.6,0.1]
[1730478954845,3.96484,2522.2,2521.7,3.96556]
[1730478955333,3.802739,2522.4,2521.7,3.96545]
[1730478955534,1.0632,2522.5,2522.0,3.96499]
[1730478955739,4.0632,2522.5,2522.0,7.92998]
[1730478955961,5.02752,2522.5,2522.0,7.93]
[1730478956163,5.02761,2522.5,2522.0,3.96499]
[1730478956323,5.02761,2522.5,2521.6,0.1]
[1730478956324,3.0,2522.4,2521.6,0.1]
[1730478956638,3.96529,2521.9,2521.6,0.1]
[1730478956843,3.96547,2521.8,2521.6,0.1]
[1730478957163,5.09197,2521.7,2521.6,0.1]
[1730478958241,8.09197,2521.7,2521.6,0.1]
[1730478958681,5.0912,2522.0,2521.6,0.1]
[1730478958851,3.0,2521.9,2521.6,0.1]
[1730478959047,3.0,2521.9,2521.6,4.06573]
[1730478959250,6.96497,2522.1,2521.6,4.06573]
[1730478959542,3.0,2522.1,2521.6,4.06562]
[1730478959775,6.96496,2522.1,2521.6,4.06562]
[1730478959950,3.0,2522.1,2521.6,8.03127]
[1730478960153,3.0,2522.1,2521.7,3.96555]
[1730478960458,3.0,2522.1,2521.6,4.06562]
[1730478960459,8.15009819,2522.1,2521.6,0.1]
[1730478960782,3.96557,2521.7,2521.6,0.1]
[1730478961145,4.77177,2521.7,2521.6,0.1]
[1730478961545,0.8062,2521.7,2521.6,0.1]
[1730478961979,3.96544,2521.8,2521.6,0.1]
[1730478962190,3.96557,2521.7,2521.6,0.1]
[1730478962341,6.96557,2521.7,2521.6,0.1]
[1730478963589,7.71877,2521.7,2521.6,0.1]
[1730478964160,3.0,2521.7,2521.6,0.1]
[1730478964469,0.76879195,2522.3,2521.6,0.1]
[1730478964470,3.96489,2522.2,2521.6,0.1]
[1730478964673,0.76879195,2522.3,2521.7,3.96548]
[1730478964860,3.96487,2522.2,2521.7,3.96548]
[1730478965049,3.96487,2522.2,2521.7,7.93098]
[1730478965246,3.96487,2522.2,2521.7,3.96548]
[1730478965551,0.7537,2522.4,2522.0,3.96498]
[1730478965752,3.96427,2522.6,2522.1,3.96494]
[1730478966092,0.7916,2522.7,2522.2,3.96479]
[1730478966251,0.7916,2522.7,2521.6,4.06564]
[1730478966252,3.96487,2522.2,2521.6,4.06564]
[1730478966451,3.9654,2521.9,2521.6,0.1]
[1730478966691,3.96513,2522.0,2521.6,0.1]
[1730478966985,3.96544,2521.8,2521.6,0.1]
[1730478967296,3.96557,2521.7,2521.6,0.1]
[1730478967855,3.96544,2521.8,2521.6,0.1]
[1730478968357,4.362114,2521.7,2521.6,0.1]
[1730478968689,0.396544,2521.7,2521.6,0.1]
[1730478968889,8.152967,2522.2,2521.6,4.06573]
[1730478969203,3.0,2522.0,2521.6,4.06573]
[1730478969690,3.96456,2522.4,2521.9,3.96525]
[1730478969892,4.75586,2522.6,2522.0,3.96502]
[1730478970052,3.96439,2522.5,2522.0,3.96502]
[1730478970666,3.96455,2522.4,2521.9,3.96526]
[1730478970995,3.96455,2522.4,2521.8,0.7691]
[1730478970996,3.7916,2522.6,2521.8,0.7691]
[1730478971201,3.0,2522.6,2521.8,0.7691]
[1730478971360,3.0,2522.8,2522.3,3.96462]
[1730478971559,4.74252,2522.9,2522.5,3.9643]
[1730478972091,4.83931497,2523.1,2522.6,3.96405]
[1730478972301,4.83931497,2523.1,2522.7,3.96399]
[1730478972661,0.7894,2523.2,2522.8,3.96384]
[1730478972861,3.96307,2523.3,2522.8,7.92759]
[1730478973301,3.96256,2523.7,2523.0,3.96345]
[1730478973507,3.96256,2523.7,2523.2,3.96314]
[1730478973702,3.96253,2523.7,2523.0,7.92687]
[1730478973902,3.96287,2523.5,2523.0,3.96343]
[1730478974072,3.963,2523.4,2522.9,0.7559]
[1730478974274,0.7894,2523.8,2522.9,0.7559]
[1730478974489,3.96246,2523.7,2523.1,3.96322]
[1730478974658,3.96246,2523.7,2523.2,3.96314]
[1730478974864,4.75178,2523.8,2523.2,3.96314]
[1730478975098,8.71419,2523.8,2523.3,3.96303]
[1730478975284,1.660819,2523.8,2523.1,3.96333]
[1730478975487,3.96267,2523.6,2523.1,3.96333]
[1730478975670,3.96246,2523.7,2523.2,3.9632]
[1730478975875,3.96268,2523.6,2523.1,3.96329]
[1730478976087,3.96246,2523.7,2523.0,3.9634]
[1730478976313,3.96246,2523.7,2523.2,3.96319]
[1730478977727,3.96246,2523.7,2523.0,3.96338]
[1730478977924,3.96246,2523.7,2523.2,3.96321]
[1730478978111,3.96246,2523.7,2523.2,7.92628]
[1730478978314,3.96246,2523.7,2522.9,0.7559]
[1730478978315,3.96265,2523.6,2523.1,3.96336]
[1730478978528,3.96275,2523.5,2522.6,20.577]
[1730478978728,3.96383,2522.9,2522.3,4.7715]
[1730478978935,3.96383,2522.9,2522.4,3.96443]
[1730478979404,0.7998,2523.4,2522.8,3.96373]
[1730478979593,8.796881,2523.6,2523.1,3.96335]
[1730478979794,4.834151,2523.6,2523.1,3.96335]
[1730478980221,3.96288,2523.5,2522.9,4.77633]
[1730478980401,3.96292,2523.4,2522.9,0.8127]
[1730478980605,0.9558831,2523.5,2522.9,4.77624]
[1730478980832,4.9186331,2523.5,2523.0,3.96351]
[1730478981001,4.9186331,2523.5,2523.0,3.96353]
[1730478981002,3.96275,2523.5,2523.0,3.96353]
[1730478981205,4.72428,2523.7,2523.1,3.9633]
[1730478981405,3.96248,2523.7,2523.3,3.96305]
[1730478981934,3.96223,2523.9,2522.9,0.8127]
[1730478981935,4.75347,2524.3,2523.5,0.8249]
[1730478982235,0.475347,2524.2,2523.9,3.96202]
[1730478982441,3.96141,2524.4,2523.9,3.96202]
[1730478982610,3.96129,2524.5,2523.5,4.78763]
[1730478982611,3.96172,2524.2,2523.6,3.96255]
[1730478982812,3.96189,2524.1,2523.6,3.96255]
[1730478983132,3.96225,2523.9,2523.4,3.96282]
[1730478983339,4.83637,2523.9,2523.4,3.96282]
[1730478983652,4.83637,2523.9,2522.9,26.73363]
[1730478983653,3.96332,2523.2,2522.9,0.7535]
[1730478983803,3.96332,2523.2,2522.7,3.96392]
[1730478983999,3.96303,2523.4,2522.7,3.96392]
[1730478984219,3.96307,2523.3,2522.9,3.96368]
[1730478984421,4.75568,2523.3,2522.9,3.96368]
[1730478984623,3.0,2523.6,2523.3,3.96306]
[1730478984838,4.77928,2523.8,2523.1,4.75518]
[1730478984839,3.96243,2523.7,2523.1,4.75518]
[1730478985046,3.96243,2523.7,2523.2,3.9632]
[1730478985209,3.96243,2523.7,2523.1,4.75518]
[1730478985210,3.9626,2523.6,2523.1,4.75518]
[1730478985733,3.96243,2523.7,2523.1,4.75526]
[1730478985949,4.440653,2523.6,2523.1,4.75526]
[1730478986105,3.96298,2523.4,2522.9,3.96368]
[1730478986306,0.477933,2523.6,2522.8,0.7562]
[1730478986307,3.96331,2523.2,2522.8,0.7562]
[1730478987303,3.96306,2523.3,2522.8,4.72]
[1730478987507,3.477933,2523.6,2523.2,3.9632]
[1730478987716,4.77928,2523.8,2523.4,7.9257]
[1730478987717,3.0,2523.8,2523.4,7.9257]
[1730478988031,4.83625,2523.9,2523.4,4.77921]
[1730478988032,0.87412,2523.9,2523.4,4.77921]
[1730478988232,0.87412,2523.9,2523.5,3.96275]
[1730478988553,0.87412,2523.9,2523.4,4.77921]
[1730478988554,3.96228,2523.8,2523.4,4.77921]
[1730478988753,3.96228,2523.8,2522.7,19.77]
[1730478988754,3.0,2523.8,2522.8,0.8164]
[1730478988937,3.96313,2523.3,2522.8,4.78022]
[1730478989342,3.9633,2523.2,2522.8,4.78022]
[1730478989651,7.92634,2523.3,2522.8,4.78022]
[1730478989867,3.96313,2523.3,2522.8,4.78015]
[1730478990167,3.96276,2523.5,2523.0,3.96337]
[1730478990458,3.96291,2523.4,2523.0,3.96337]
[1730478991466,4.746158,2523.7,2523.2,3.96307]
[1730478991674,3.8134,2523.8,2523.4,3.96281]
[1730478991970,4.77531,2524.1,2523.6,3.9625]
[1730478992261,4.77531,2524.1,2523.4,0.7997]
[1730478992262,3.96222,2523.9,2523.4,4.7625]
[1730478992464,3.96228,2523.8,2523.4,4.7625]
[1730478992966,3.96228,2523.8,2522.6,12.19991529]
[1730478992967,3.96228,2523.8,2523.2,3.96314]
[1730478993172,3.96247,2523.7,2523.3,3.96304]
[1730478993667,4.439722,2523.9,2523.3,3.96304]
[1730478993871,3.96261,2523.6,2523.2,3.96321]
[1730478994030,0.477562,2523.9,2523.2,3.96322]
[1730478994236,4.439762,2523.9,2523.4,3.96282]
[1730478994632,0.477562,2523.9,2523.5,3.96267]
[1730478994860,3.96259,2523.6,2522.5,0.7997]
[1730478995166,0.396259,2523.5,2523.2,3.96312]
[1730478995367,3.96255,2523.7,2523.2,3.96314]
[1730478995531,3.96243,2523.7,2523.1,0.7997]
[1730478995838,3.96243,2523.7,2521.8,0.12400534]
[1730478995839,0.8134,2523.8,2522.8,0.7997]
[1730478996043,3.96265,2523.6,2523.1,3.96328]
[1730478996257,0.873848,2523.6,2522.8,0.7997]
[1730478996477,7.92666,2523.2,2522.7,3.96397]
[1730478996643,3.96331,2523.2,2522.7,3.9639]
[1730478996974,6.96265,2523.6,2522.6,0.7997]
[1730478996975,6.96276,2523.5,2523.0,3.96345]
[1730478997133,0.8134,2523.8,2523.1,4.76304]
[1730478997335,3.96268,2523.6,2523.1,4.76304]
[1730478997581,4.440288,2523.6,2523.2,3.96322]
[1730478999082,4.440288,2523.6,2523.1,4.76305]
[1730478999274,4.440288,2523.6,2522.2,3.96476]
[1730478999275,3.96318,2523.3,2522.2,3.96476]
[1730478999479,0.7899,2523.4,2522.8,3.96384]
[1730478999480,3.96322,2523.2,2522.8,3.96384]
[1730478999781,4.438532,2523.2,2522.8,3.96384]
[1730478999943,4.438532,2523.2,2522.6,4.77752]
[1730479000145,4.438532,2523.2,2522.1,0.41227607]
[1730479000146,3.9637,2522.9,2522.2,0.8135]
[1730479000346,0.7938,2522.9,2522.3,3.96457]
[1730479000547,0.7938,2522.9,2522.2,0.8135]
[1730479000548,3.96402,2522.7,2522.2,0.8135]
[1730479000754,4.439802,2522.7,2522.2,0.8135]
[1730479000988,3.96441,2522.5,2522.0,4.7403]
[1730479001281,0.475782,2522.7,2522.2,3.96478]
[1730479001494,0.475782,2522.7,2521.5,5.41198907]
[1730479001495,6.9636,2523.0,2522.6,3.96413]
[1730479001675,6.9636,2523.0,2522.4,4.73975]
[1730479001676,3.96373,2522.9,2522.4,4.73975]
[1730479001857,3.96383,2522.9,2522.3,3.96454]
[1730479002053,3.96383,2522.9,2522.1,4.74012]
[1730479002054,0.7938,2522.9,2522.1,4.74012]
[1730479002255,3.96435,2522.5,2522.1,0.7753]
[1730479002496,3.9641,2522.7,2522.1,4.74015]
[1730479002497,3.96418,2522.6,2522.1,4.74015]
[1730479002691,0.792845,2522.5,2522.1,3.96493]
[1730479003562,4.75758,2522.9,2521.8,0.7753]
[1730479003890,4.75758,2522.9,2522.3,0.7753]
[1730479003891,3.96418,2522.6,2522.3,0.7753]
[1730479004092,3.96418,2522.6,2522.2,3.96469]
[1730479004465,3.96439,2522.5,2522.0,4.74038]
[1730479004794,7.9294,2522.3,2521.8,3.96531]
[1730479004995,7.9294,2522.3,2521.6,3.1]
[1730479004996,3.96493,2522.2,2521.6,4.06563]
[1730479005290,3.96533,2521.9,2521.6,0.1]
[1730479005872,1.58674,2522.3,2521.7,3.9655]
[1730479005873,5.55146,2522.3,2521.7,3.9655]
[1730479006085,3.96514,2522.0,2521.6,0.1]
[1730479006285,3.96526,2521.9,2521.6,0.1]
[1730479006493,1.58674,2522.3,2521.6,0.1]
[1730479006494,4.77397,2521.7,2521.6,0.1]
[1730479006765,0.8084,2521.7,2521.6,0.1]
[1730479007208,4.77397,2521.7,2521.6,0.1]
[1730479007874,0.8084,2521.7,2521.6,0.1]
[1730479008406,4.77397,2521.7,2521.6,0.1]
[1730479008705,5.6875676,2521.7,2521.6,0.1]
[1730479009072,1.7219976,2521.7,2521.6,0.1]
[1730479009309,4.362006,2521.8,2521.6,0.1]
[1730479010071,3.96557,2521.7,2521.6,0.1]
[1730479010278,4.362006,2521.8,2521.6,0.1]
[1730479010463,0.396526,2521.8,2521.6,0.1]
[1730479010667,3.0,2521.9,2521.6,0.1]
[1730479010902,3.96557,2521.7,2521.6,0.1]
[1730479011263,6.96528,2521.9,2521.6,0.1]
[1730479011481,3.96543,2521.8,2521.6,0.1]
[1730479012636,3.0,2521.9,2521.6,0.1]
[1730479012769,5.77474327,2522.6,2521.6,0.1]
[1730479012770,3.96476,2522.3,2521.7,3.96555]
[1730479012970,3.96476,2522.3,2521.8,3.96531]
[1730479013202,0.8098,2522.4,2521.9,3.96518]
[1730479013203,4.77433,2522.4,2521.9,3.96518]
[1730479013414,3.96501,2522.1,2521.6,4.87008]
[1730479013714,5.648184,2522.4,2521.7,3.96546]
[1730479013899,3.96486,2522.2,2521.7,3.96546]
[1730479014226,3.96486,2522.2,2521.6,0.9044]
[1730479014227,3.96511,2522.0,2521.6,0.9044]
[1730479014416,3.96511,2522.0,2521.6,4.87009]
[1730479014571,4.77513,2521.9,2521.6,0.1]
[1730479014772,0.8098,2521.9,2521.6,0.1]
[1730479015109,4.77507,2521.9,2521.6,0.1]
[1730479015275,0.8098,2521.9,2521.6,0.1]
[1730479016480,3.96502,2522.1,2521.6,0.1]
[1730479016672,3.96494,2522.1,2521.6,4.06571]
[1730479017413,1.5480764,2522.2,2521.6,0.1]
[1730479017414,3.9652,2522.0,2521.6,0.1]
[1730479017607,3.96549,2521.8,2521.6,0.1]
[1730479017848,4.77317,2521.7,2521.6,0.1]
[1730479019714,7.77317,2521.7,2521.6,0.1]
[1730479019901,8.947036,2521.7,2521.6,0.1]
[1730479021471,10.09611868,2521.7,2521.6,1e-05]
[1730479022037,8.962636,2521.7,2521.6,1e-05]
[1730479022238,4.78877,2521.7,2521.6,1e-05]
[1730479023498,7.78877,2521.7,2521.6,1e-05]
[1730479024846,8.92225268,2521.7,2521.6,1e-05]
[1730479025553,8.92225268,2521.7,2519.9,3.96833]
[1730479025554,0.7578,2520.6,2520.1,3.96799]
[1730479025713,3.96589,2521.5,2520.3,3.9677]
[1730479025714,3.96707,2520.8,2520.3,3.9677]
[1730479025916,0.869181,2520.8,2520.2,0.8171]
[1730479026154,3.96668,2521.0,2520.4,3.96752]
[1730479026155,3.0,2521.0,2520.4,3.96752]
[1730479026452,3.0,2521.0,2520.2,4.86438464]
[1730479026453,3.0,2521.1,2520.7,3.96703]
[1730479026663,3.0,2521.3,2520.9,3.96674]
[1730479027156,6.96622,2521.3,2520.5,0.8184]
[1730479027316,6.96655,2521.1,2520.6,3.96723]
[1730479027860,3.0,2521.1,2520.7,3.96712]
[1730479028522,3.96685,2520.9,2520.5,0.8184]
[1730479028724,3.96721,2520.7,2520.2,3.96779]
[1730479029338,3.96715,2520.7,2520.2,3.96779]
[1730479029924,3.96734,2520.6,2520.0,3.96825]
[1730479030290,3.96748,2520.5,2520.0,3.96825]
[1730479030418,4.837304,2520.7,2519.8,5.12414138]
[1730479030616,6.96683,2520.9,2520.2,0.7948]
[1730479030859,3.96699,2520.8,2520.3,3.96776]
[1730479031219,3.96699,2520.8,2520.4,3.96755]
[1730479032355,3.96699,2520.8,2520.2,4.76271]
[1730479032356,3.96701,2520.8,2520.2,4.76272]
[1730479032561,3.96732,2520.6,2520.2,4.76272]
[1730479033220,3.96732,2520.6,2520.2,8.73058]
[1730479033419,0.772581,2520.8,2520.2,4.76266]
[1730479033720,0.772581,2520.8,2520.2,8.73049]
[1730479033721,3.96728,2520.7,2520.2,8.73049]
[1730479034009,3.96728,2520.7,2520.2,8.73048]
[1730479034219,3.96703,2520.8,2520.2,0.7948]
[1730479034383,3.96703,2520.8,2520.4,3.9676]
[1730479034585,3.96719,2520.7,2520.3,3.96768]
[1730479034791,3.96731,2520.6,2520.2,4.76272]
[1730479034974,0.793422,2520.7,2520.3,3.96777]
[1730479035174,3.7588,2521.0,2520.2,0.7948]
[1730479035175,3.96742,2520.6,2520.2,0.7948]
[1730479035717,7.93424,2520.8,2520.3,3.96771]
[1730479035897,3.96685,2520.9,2520.4,3.96752]
[1730479036215,5.29683772,2521.7,2520.4,3.96752]
[1730479036216,6.96666,2521.1,2520.6,3.9672]
[1730479036508,4.76099,2521.2,2520.8,3.96691]
[1730479036727,5.633699,2521.2,2520.8,3.96691]
[1730479037023,9.600149,2521.2,2520.7,3.96713]
[1730479037225,3.96663,2521.1,2520.6,3.96728]
[1730479037526,0.7639,2520.7,2520.0,0.8053]
[1730479037728,3.96833,2520.0,2519.5,0.8053]
[1730479037936,3.0,2520.6,2519.5,0.8053]
[1730479037937,0.7639,2520.2,2519.5,0.8053]
[1730479038087,0.7639,2520.2,2519.4,3.96917]
[1730479038088,3.96884,2519.7,2519.3,0.62085751]
[1730479038294,3.7639,2520.2,2519.3,0.62085751]
[1730479038295,3.9686,2519.8,2519.3,3.96927]
[1730479038523,3.96874,2519.7,2519.2,4.77473]
[1730479038708,3.96857,2519.8,2519.4,3.96917]
[1730479039105,3.96857,2519.8,2519.3,3.96928]
[1730479039307,3.96903,2519.6,2519.2,0.8053]
[1730479039508,3.96919,2519.4,2518.9,0.1232417]
[1730479039691,7.78022,2519.0,2518.9,0.1232417]
[1730479043225,8.33022,2519.0,2518.9,0.1232417]
[1730479043836,8.91353602,2519.0,2518.9,0.1232417]
[1730479044032,10.72809047,2519.0,2518.9,0.1232417]
[1730479044240,10.14477445,2519.0,2518.9,0.1232417]
[1730479044955,10.76918213,2519.0,2518.9,0.1232417]